Cogmind - Beta 15 --- EXPLORER MODE // 2025.08.23 @ 20:01:33 Player: Beosis Result: Destroyed by D-53 Grenadier with Mini Grenade Launcher Performance ------------- Evolutions (0) 0 Regions Visited (4) 800 Robots Destroyed (7) 35 Value Destroyed (139) 139 Prototype IDs (0) 0 Alien Tech Used (0) 0 Bonus (0) 0 TOTAL SCORE: 974 Bonus ------- None Cogmind --------- Core Integrity 0/250 Matter 300/300 Energy 250/250 System Corruption 0% Temperature Cool (0) Movement Walking (120) Location -9/Mines Parts ------- > --- POWER (1) -------- Ion Engine > --- PROPULSION (3) --- Aluminum Leg Aluminum Leg > --- UTILITY (2) ------ Medium Storage Unit > --- WEAPON (2) ------- Assault Rifle Makeshift Hammer > --- INVENTORY (10) --- Light Ion Engine Aluminum Leg Aluminum Leg Makeshift Terrain Scan Processor Power Shielding Light Armor Plating Particle Gun Light Assault Rifle Makeshift Shrapnel Gun Peak State ------------ > --- POWER ------------ Ion Engine > --- PROPULSION ------- Aluminum Leg Aluminum Leg Aluminum Leg > --- UTILITY ---------- Medium Storage Unit Targeting Computer > --- WEAPON ----------- Assault Rifle Makeshift Hammer > --- INVENTORY -------- Ion Engine Light Ion Engine Aluminum Leg Makeshift Terrain Scan Processor Power Shielding Light Armor Plating Particle Gun Light Assault Rifle Makeshift Shrapnel Gun [Rating: 12] Favorites ----------- Power Ion Engine Engine Ion Engine Propulsion Aluminum Leg Leg Aluminum Leg Utility Medium Storage Unit Storage Medium Storage Unit Processor Targeting Computer Weapon Assault Rifle Energy Gun EM Pulse Gun Ballistic Gun Assault Rifle Impact Weapon Makeshift Hammer Build | -11 -10 -10 -10 -9 ------- Run | Yrd Mat Min Exi Min Slots Evolved 1 | . 1 . . . Power . | . . . . . Propulsion 1 | . 1 . . . Utility . | . . . . . Weapon . | . . . . . Parts Attached 14 | 7 2 . . 5 Power 2 | 1 . . . 1 Engine 2 | 1 . . . 1 Core . | . . . . . Reactor . | . . . . . Propulsion 6 | 2 1 . . 3 Treads . | . . . . . Leg 6 | 2 1 . . 3 Wheel . | . . . . . Hover . | . . . . . Flight . | . . . . . Utility 2 | 2 . . . . Device . | . . . . . Storage 1 | 1 . . . . Processor 1 | 1 . . . . Hackware . | . . . . . Protection . | . . . . . Artifact . | . . . . . Weapon 4 | 2 1 . . 1 Energy Gun 1 | 1 . . . . Energy Cannon . | . . . . . Ballistic Gun 2 | 1 1 . . . Ballistic Cannon . | . . . . . Launcher . | . . . . . Special Weapon . | . . . . . Impact Weapon 1 | . . . . 1 Slashing Weapon . | . . . . . Piercing Weapon . | . . . . . Special Melee Weapon . | . . . . . Unidentified Prototypes . | . . . . . Parts Lost 3 | . . . . 3 Power . | . . . . . Propulsion 1 | . . . . 1 Utility 1 | . . . . 1 Weapon 1 | . . . . 1 Highest Loss Streak 2 | . . . . 2 To Critical Strikes . | . . . . . Average Backups 8 | 2 5 7 9 9 Power 1 | . 2 2 2 1 Propulsion . | . . 1 1 1 Utility 2 | 1 2 2 2 3 Weapon 2 | . 1 2 3 3 Tool/Special . | . . . . . Unused Backups 6 | . . . . 6 Power 1 | . . . . 1 Propulsion . | . . . . . Utility 3 | . . . . 3 Weapon 2 | . . . . 2 Tool/Special . | . . . . . Average Slot Usage (%) 98 | . 91 100 100 97 Engine 12 | . 12 12 12 12 Leg 35 | . 29 37 37 35 Storage 12 | . 12 12 12 12 Processor 11 | . 12 12 12 11 Energy Gun 9 | . 12 12 12 . Ballistic Gun 11 | . 11 12 12 12 Impact Weapon 1 | . . . . 10 Peak Build Rating 12 | 7 8 8 10 12 Average Rating 9 | 4 7 8 9 11 On Entrance 6 | . 7 8 8 10 Naked Turns . | . . . . . Heaviest Build 20 | 18 19 19 19 20 Greatest Support 30 | 20 30 30 30 30 Greatest Overweight (x) 5 | . 5 . . . Average Overweight (x) . | . . . . . Largest Inventory Capacity 10 | 10 10 10 10 10 Average Capacity 9 | 8 10 10 10 10 Most Carried 10 | 5 7 7 10 10 Average Carried 8 | 2 5 7 9 8 Final Capacity 10 | 10 10 10 10 10 Final Carried 10 | 5 7 7 10 9 Class Distribution -------------------- 100% | Hacker-Mutant Dominant Class ---------------- Hacker-Mutant | -10/Materials Hacker-Mutant | -10/Mines Hacker-Mutant | -10/Exiles Hacker-Mutant | -9/Mines Resources | -11 -10 -10 -10 -9 ----------- Run | Yrd Mat Min Exi Min Matter Collected 398 | 271 62 3 . 62 Remotely . | . . . . . Salvage Created 506 | 100 212 39 . 155 Parts 15 | 3 7 5 . . Haulers Intercepted . | . . . . . Recyclers Shooed . | . . . . . Parts Field Recycled . | . . . . . Retrieved Matter . | . . . . . Parts Self-Destructed . | . . . . . Prevented . | . . . . . Kills | -11 -10 -10 -10 -9 ------- Run | Yrd Mat Min Exi Min Combat Hostiles Destroyed 16 | . 2 2 . 12 Melee 9 | . . . . 9 Guns 5 | . 2 2 . 1 Cannons 1 | . . . . 1 Classes Destroyed 5 | 1 2 1 . 1 Recycler 2 | 1 1 . . . Watcher 1 | . 1 . . . Swarmer 2 | . . 2 . . Grunt 2 | . 2 . . . Assembled 12 | . . . . 12 Best Kill Streak 12 | 1 2 2 . 12 Combat Bots Only 12 | . 2 2 . 12 Max Kills in Single Turn 2 | 1 1 2 . 1 Gunslinging 1 | . . 1 . . Exploded . | . . . . . Melee 1 | . . . . 1 Uniques/NPCs Destroyed . | . . . . . Combat | -11 -10 -10 -10 -9 -------- Run | Yrd Mat Min Exi Min Hostile Shots Fired 73 | . 9 3 . 61 Missed 13 | . 2 . . 11 Hits 60 | . 7 3 . 50 Melee 7 | . . . . 7 Projectile 53 | . 7 3 . 43 AOE 16 | . . . . 16 Critical Strikes 2 | . . . . 2 Damage Taken 859 | . 87 12 . 760 Core 251 | . . . . 251 Absorbed by Shields . | . . . . . Ignored by Resistances 526 | . 52 10 . 464 Core Remaining (%) 100 | 100 . . . . Volleys Fired 19 | 1 12 1 . 5 Largest 2 | 2 2 2 . 1 Hottest 60 | 60 60 60 . 20 Shots Fired 32 | 2 23 2 . 5 Gun 32 | 2 23 2 . 5 Cannon . | . . . . . Launcher . | . . . . . Special . | . . . . . Kinetic 18 | 1 11 1 . 5 Thermal . | . . . . . Explosive . | . . . . . Electromagnetic 14 | 1 12 1 . . Robot Hit Streak 13 | 1 13 3 . 8 Robot Miss Streak 1 | . 1 . . . Penetration Max . | . . . . . Secondary Targets 1 | . . 1 . . Max Gunslinging Chain 1 | . . 1 . . Shots Hit Robots 38 | 1 15 2 . 20 Core Hits 24 | 1 7 4 . 12 Critical Kills 3 | . . . . 3 Critical Parts Destroyed . | . . . . . Critical Strikes 6 | 1 2 . . 3 Corrupt 3 | 1 2 . . . Smash 3 | . . . . 3 Melee Attacks 17 | . . . . 17 Impact 17 | . . . . 17 Slashing . | . . . . . Piercing . | . . . . . Sneak Attacks . | . . . . . Combat Hostiles . | . . . . . Follow-up Attacks . | . . . . . Damage Inflicted 1294 | 25 234 68 . 967 Guns 329 | 25 216 26 . 62 Cannons . | . . . . . Explosions . | . . . . . Melee 905 | . . . . 905 Ramming 60 | . 18 42 . . Kinetic 163 | 10 77 14 . 62 Thermal . | . . . . . Explosive . | . . . . . Electromagnetic 166 | 15 139 12 . . Impact 905 | . . . . 905 Slashing . | . . . . . Piercing . | . . . . . Highest Corruption . | . . . . . Average Corruption . | . . . . . Corruption Purged . | . . . . . Corruption Blocked . | . . . . . Overload Shots . | . . . . . Overflow Damage 121 | . . . . 121 Projectiles . | . . . . . Explosions . | . . . . . Melee 121 | . . . . 121 Knockbacks 2 | . . . . 2 Impact 1 | . . . . 1 Kinetic . | . . . . . Secondary 1 | . . . . 1 Self-Inflicted Damage . | . . . . . Shots . | . . . . . Rammed . | . . . . . Targets Rammed 29 | . 8 21 . . Kicked 29 | . 8 21 . . Crushed . | . . . . . Highest Temperature 39 | 20 39 . . . Average Temperature 18 | 10 20 . . . Received Heat Transfer 54 | . 54 . . . Siege Activations . | . . . . . Martial Activations . | . . . . . Shielding Activations . | . . . . . Robots Disrupted . | . . . . . Combat Hostiles . | . . . . . Robots Corrupted 1 | . . . . 1 Combat Hostiles 1 | . . . . 1 Parts Fried . | . . . . . Impact Corruptions 5 | . . . . 5 Robots Melted . | . . . . . Combat Hostiles . | . . . . . Parts Melted . | . . . . . Heat Transferred . | . . . . . Parts Sabotaged . | . . . . . Parts Stolen . | . . . . . Parts Stripped . | . . . . . Power Chain Reactions . | . . . . . Alert | -11 -10 -10 -10 -9 ------- Run | Yrd Mat Min Exi Min Maximum Alert Level . | . . . . . Low Security (%) 100 | 100 100 100 . 100 Level 1 . | . . . . . Level 2 . | . . . . . Level 3 . | . . . . . Level 4 . | . . . . . Level 5 . | . . . . . High Security . | . . . . . Max Security . | . . . . . Peak Influence 50 | 5 50 50 . . Initial . | . . . . . Average 3 | . 4 5 . . Influence Increases 138 | 5 83 50 . . Destroy 0b10 Robot/C 80 | . 40 40 . . Destroy 0b10 Robot/NC 15 | 5 10 . . . Destroy Leader 22 | . 12 10 . . Successful Hack 17 | . 17 . . . Disable Machine 4 | . 4 . . . Influence Decreases 138 | 5 83 50 . . Time Decay 138 | 5 83 50 . . Squads Dispatched 1 | . 1 . . . Investigation 1 | . 1 . . . Extermination . | . . . . . Reinforcement . | . . . . . Assault . | . . . . . Garrison . | . . . . . Intercept . | . . . . . Searches Triggered . | . . . . . Construction Impeded . | . . . . . Haulers Reinforced . | . . . . . Active Scanning Responses . | . . . . . Cargo Convoy Interrupts . | . . . . . Stealth | -11 -10 -10 -10 -9 --------- Run | Yrd Mat Min Exi Min Distress Signals 1 | . 1 . . . Communications Jammed . | . . . . . Distress Signals . | . . . . . Times Spotted 32 | . 6 2 . 24 Peak Tracking Total 16 | . 3 2 . 16 Tactical Retreats 2 | . . . . 2 Traps | -11 -10 -10 -10 -9 ------- Run | Yrd Mat Min Exi Min Traps Triggered 3 | . 3 . . . Indirectly . | . . . . . Trap Hack Attempts . | . . . . . Triggered . | . . . . . Disarmed . | . . . . . Reprogrammed . | . . . . . Reused . | . . . . . Traps Extracted . | . . . . . Installed . | . . . . . Triggered . | . . . . . Machines | -11 -10 -10 -10 -9 ---------- Run | Yrd Mat Min Exi Min Machines Disabled 1 | . 1 . . . Max in Single Turn 1 | . 1 . . . Machines Repaired . | . . . . . Machines Dismantled . | . . . . . Machines Sabotaged . | . . . . . Overloaded Fab Kills . | . . . . . Hacking | -11 -10 -10 -10 -9 --------- Run | Yrd Mat Min Exi Min Machines Accessed 7 | . 3 . 4 . Terminals 3 | . 3 . . . Fabricators . | . . . . . Repair Stations . | . . . . . Recycling Units . | . . . . . Scanalyzers . | . . . . . Garrison Access . | . . . . . Total Hacks 57 | . 8 . 49 . Successful 54 | . 5 . 49 . Failed 3 | . 3 . . . Catastrophic . | . . . . . Database Lockouts . | . . . . . Manual 1 | . . . 1 . Terminals 8 | . 8 . . . Fabricators . | . . . . . Repair Stations . | . . . . . Recycling Units . | . . . . . Scanalyzers . | . . . . . Garrison Access . | . . . . . Terminal Hacks 54 | . 5 . 49 . Record 52 | . 3 . 49 . Dispatch Records 1 | . 1 . . . Zone Layout 1 | . 1 . . . Fabricator Hacks . | . . . . . Repair Station Hacks . | . . . . . Recycling Unit Hacks . | . . . . . Scanalyzer . | . . . . . Garrison Access Hacks . | . . . . . Unauthorized Hacks . | . . . . . Terminals . | . . . . . Fabricators . | . . . . . Repair Stations . | . . . . . Recycling Units . | . . . . . Scanalyzers . | . . . . . Garrison Access . | . . . . . Data Cores Recovered . | . . . . . Used . | . . . . . Hacking Detections 2 | . 2 . . . Full Trace Events 1 | . 1 . . . Feedback Events . | . . . . . Feedback Blocked . | . . . . . Robot Schematics Acquired . | . . . . . Robots Built . | . . . . . Authchips . | . . . . . Time . | . . . . . Total Robot Build Rating . | . . . . . Part Schematics Acquired . | . . . . . Parts Built . | . . . . . Authchips . | . . . . . Time . | . . . . . Total Part Build Rating . | . . . . . Parts Repaired . | . . . . . Time . | . . . . . Parts Recycled . | . . . . . Recycled Matter . | . . . . . Retrieved Matter . | . . . . . Retrieved Components . | . . . . . Parts Scanalyzed . | . . . . . Part Schematics Acquired . | . . . . . Parts Damaged . | . . . . . Bothacking | -11 -10 -10 -10 -9 ------------ Run | Yrd Mat Min Exi Min Used RIF Installer . | . . . . . Robots Hacked . | . . . . . Non-combat . | . . . . . Combat . | . . . . . Robot Hacks Applied . | . . . . . Relay Couplers Released . | . . . . . Fabnet Peak Effective % . | . . . . . Robots Rewired 2 | . . . 2 . Allies Hacked . | . . . . . Hacks Repelled . | . . . . . Allies | -11 -10 -10 -10 -9 -------- Run | Yrd Mat Min Exi Min Total Allies 2 | . . . 2 . Largest Group 2 | . . . 2 2 Highest-Rated Group 29 | . . . 29 29 Highest-Rated Ally 21 | . . . 21 21 Total Orders . | . . . . . Ally Attacks 3 | . . . . 3 Total Damage 54 | . . . . 54 Kills 1 | . . . . 1 Allies Corrupted . | . . . . . Allies Melted . | . . . . . Intel | -11 -10 -10 -10 -9 ------- Run | Yrd Mat Min Exi Min Active Infowar (turns) . | . . . . . Robot Analysis Total . | . . . . . Derelict Logs Recovered . | . . . . . Drone Launches . | . . . . . Drone Recoveries . | . . . . . Exploration | -11 -10 -10 -10 -9 ------------- Run | Yrd Mat Min Exi Min Turns Passed 2493 | 85 404 375 1189 440 Spaces Moved 1769 | 57 272 280 967 193 Core 7 | 6 1 . . . Treads . | . . . . . Legs 1762 | 51 271 280 967 193 Wheels . | . . . . . Hover . | . . . . . Flight . | . . . . . Fastest Speed 50 | 50 120 120 120 120 Average Speed 119 | 112 120 120 120 120 Slowest Speed 300 | 120 300 120 120 120 Overloaded Moves . | . . . . . Propulsion Burnouts . | . . . . . Robots Hopped . | . . . . . Potential Cave-ins . | . . . . . Cave-ins Triggered . | . . . . . Exploration Rate (%) 47 | 5 50 49 92 39 Regions Visited 4 Branch Regions 3 Pre-discovered Areas 1 | . . . 1 . Known Exits Taken 4 | 1 1 1 1 . Unknown Exits Taken . | . . . . . Scrap Searched . | . . . . . Spaces Dug . | . . . . . Terrain Destroyed . | . . . . . Melee . | . . . . . Projectile . | . . . . . AOE . | . . . . . Terrain Rammed . | . . . . . Walls Destroyed . | . . . . . Machines Disabled . | . . . . . Actions | -11 -10 -10 -10 -9 --------- Run | Yrd Mat Min Exi Min Total 2084 | 76 322 313 995 378 Wait 193 | . 21 12 4 156 Move 1765 | 56 271 279 966 193 Hop . | . . . . . Pick Up 23 | 12 6 . 3 2 Fast Attach . | . . . . . Attach 14 | 7 4 . . 3 Detach . | . . . . . Swap 2 | . . . . 2 Drop . | . . . . . Fire 19 | 1 12 1 . 5 Melee 17 | . . . . 17 Ram . | . . . . . Kick 29 | . 8 21 . . Crush . | . . . . . Escape Stasis . | . . . . . Rewire 22 | . . . 22 . Trap . | . . . . . Miscellaneous . | . . . . . Route ------- -11/Scrapyard -10/Materials (discovered 2 exits: *Mat / *Min) -10/Mines (discovered 2 exits: *Mat / *Exi) -10/Exiles (discovered 2 exits: *Min x2) -9/Mines History --------- Turn | Location | Event 5 | -11/Scrapyard | Identified exit to Materials 5 | -11/Scrapyard | Discovered exit to Materials (range 16) 86 | -11/Scrapyard | Entered Materials 86 | -10/Materials | Evolved 1 slot: Propulsion x1 87 | -10/Materials | Met a group of wandering Federalists 322 | -10/Materials | Identified exit to Materials 322 | -10/Materials | Discovered exit to Materials (range 7) 328 | -10/Materials | Build established: Hacker-Mutant 474 | -10/Materials | Identified exit to Mines 474 | -10/Materials | Discovered exit to Mines (range 10) 490 | -10/Materials | Entered Mines 696 | -10/Mines | Discovered exit to Materials (range 13) 859 | -10/Mines | Deemed a non-threat by the Exiles lab entrance 861 | -10/Mines | Identified exit to Exiles 861 | -10/Mines | Discovered exit to Exiles (range 5) 865 | -10/Mines | Entered Exiles 865 | -10/Exiles | Found Exiles lab destroyed 1337 | -10/Exiles | Identified exit to Mines 1337 | -10/Exiles | Discovered exit to Mines (range 14) 1560 | -10/Exiles | Learned location of Zion (-7) 1601 | -10/Exiles | Discovered exit to Mines (range 10) 2054 | -10/Exiles | Entered Mines 2054 | -9/Mines | Accompanied by 2 allies 2055 | -9/Mines | Assembled infested the area 2163 | -9/Mines | Destroyed 12 combat bots 2465 | -9/Mines | Core integrity fell below 50% 2476 | -9/Mines | Core integrity fell below 20% 2494 | -9/Mines | Destroyed by D-53 Grenadier with Mini Grenade Launcher Last Messages --------------- K-01 Serf cleans the Seismic Survey Station. T-07 Excavator is excavating. U-05 Engineer lays Concrete. T-07 Excavator is excavating. U-05 Engineer lays Concrete. T-07 Excavator is excavating. The unstable cave ceiling collapses. T-07 Excavator is excavating. U-05 Engineer builds a Wall. The unstable cave ceiling collapses. U-05 Engineer destroyed. T-07 Excavator is excavating. The unstable cave ceiling collapses. T-07 Excavator is excavating. The unstable cave ceiling collapses. T-07 Excavator is excavating. The unstable cave ceiling collapses. Aluminum Leg destroyed. Seismic Survey Station disabled. Targeting Computer destroyed. Map ----- +----------------------------------------------------+ | ????????????????????????????? | | ????????????????????????????? | | ??????????###???????????????? | | ?????????## ##??????????????? | | ?????????# #??????????????? | | ?########## ######?????????? | | ?# #?????????? | | ?# """ """ """ #?????????? | | ?# """ """ """ #?????????? | | ?# """ """ """ #?????????? | | ?# #?????????? | | ?# """ """ """ #???######? | | ?# """ """ """ #??## ## | | ?# """ """ """ #?## | | ?# ### = | | ?# """ """ """ ## # | | ?# """ """ """ ## | | ?# """ """ """ ## | | ?# # | | ?# """ """ """ | | ?# """ """ """ | | ?# """ """ "" | | ?# | | ?# d | | ?# d ## | | ?# @ # ### | | ?### # ## ## # | | ???## #### ## #? | | ????#### #### # #? | | ???????##########?## ##??? | | ???????????????????# ##?? | | ???????????????????# #?? | | ???????????????????## #?? | | ????????????????????# #?? | | ????????????????????# ##?? | | ???????????????????## ##??? | | ???????????????????# ##??? | | ???????????????????# #??? | | ?????????????####### #??? | | ?????????????# " #??? | | ?????????????#%% #??? | | ??????########%#### #??? | | ??????# %*=!% %#??# #??? | | ??????# ###### #??## #??? | | ??????# #????#[#???## ##??? | | ??????# #????#%#????#####???? | | ??????# ###??# #????????????? | | ?????## #### ##???????????? | | ?????# ##??????????? | | ?????# """ #??????????? | +----------------------------------------------------+ Best States ------------- Heat Dissipation 25 Energy Generation 10 Energy Capacity 250 Matter Stores 300 Matter Capacity 300 Sight Range 16 Terrain Scan Density 10 Resistance: KI 35 Resistance: TH 35 Resistance: EX 35 Resistance: EM 35 Resistance: I 35 Resistance: S 35 Resistance: P 35 Evasion (%) 55 Targeting Accuracy 5 Offensive Hacking 20 Item Schematics ----------------- None Robot Schematics ------------------ None Fabricated ------------ Nothing Repaired ---------- Nothing Alien Tech Used ----------------- None Achievements -------------- A New Friend Challenges ------------ None Game ------ Seed VoltaicEncryptedDrivehammer Manual? 0 Play Time 00:26:36 Cumulative 26.5 hours Start 2025.08.23 @ 19:19:39 End 2025.08.23 @ 20:01:33 Sessions 1 Manual Loads 0 Difficulty Explorer Special Mode None Game No. 27 Rogue 16 Adventurer 1 Explorer 10 Win Type - Total 0 Types 0/0/0/0/0/0/0/0/0/0 Lore% 18 Gallery% 22 Achievement% 22 Wizard Run 0 Options --------- Layout 1 ASCII 0 Keyboard 0 Movement Numpad Keybinds 0 Fullscreen 1 Font 24/Smallcaps Map View 50x35 Zoom Use 0% Tactical HUD 0 Map Filters NONE Filters NONE Steam 1 RUN: aaaea327-2422-4bb1-93cc-ec73926f37bf